bitfinex/quotes_SOLUSD_20241117
["timestamp","ask_amount","ask_price","bid_price","bid_amount"]
[1731823545482,28.40434188,236.41,236.33,28.40434188]
[1731823545684,28.40434188,236.43,236.33,28.40434188]
[1731823546874,28.40434188,236.43,236.35,28.40434188]
[1731823547072,28.40434188,236.43,236.36,23.776884]
[1731823547376,28.40434188,236.47,236.37,28.40434188]
[1731823547579,12.9839,236.57,236.5,160.5]
[1731823547758,28.40434188,236.59,236.51,28.40434188]
[1731823547963,12.9986,236.64,236.55,28.40434188]
[1731823548164,28.40434188,236.66,236.58,23.776884]
[1731823548681,28.40434188,236.67,236.58,23.776884]
[1731823548857,28.40434188,236.65,236.58,23.776884]
[1731823549062,0.4656599,236.69,236.62,23.776884]
[1731823549482,28.40434188,236.66,236.57,28.40434188]
[1731823549669,28.40434188,236.66,236.55,52.18122588]
[1731823550061,28.40434188,236.64,236.55,52.18122588]
[1731823550277,28.40434188,236.58,236.47,61.09284188]
[1731823550479,0.4656599,236.69,236.56,28.40434188]
[1731823550673,28.87000178,236.69,236.59,28.40434188]
[1731823550873,28.87000178,236.69,236.61,28.40434188]
[1731823551174,28.87000178,236.69,236.55,28.40434188]
[1731823551175,28.40434188,236.65,236.55,28.40434188]
[1731823551371,28.40434188,236.67,236.57,28.40434188]
[1731823552182,20.0,236.66,236.57,28.40434188]
[1731823552780,20.0,236.66,236.58,23.776884]
[1731823552960,28.40434188,236.65,236.58,23.776884]
[1731823553577,28.40434188,236.65,236.56,23.776884]
[1731823556090,28.40434188,236.65,236.58,23.776884]
[1731823556671,28.40434188,236.67,236.58,23.776884]
[1731823556988,17.73089659,236.68,236.58,41.50778059]
[1731823558183,17.73089659,236.66,236.58,23.776884]
[1731823558389,17.73089659,236.66,236.57,23.776884]
[1731823559191,17.73089659,236.62,236.47,32.6885]
[1731823559378,17.73089659,236.52,236.47,32.6885]
[1731823559589,0.12549,236.64,236.56,142.76910341]
[1731823559777,0.12549,236.64,236.47,32.6885]
[1731823559778,17.73089659,236.57,236.47,32.6885]
[1731823560091,17.73089659,236.5,236.41,17.73089659]
[1731823560298,0.1,236.7,236.49,50.44969659]
[1731823560486,12.365,236.74,236.53,17.73089659]
[1731823560487,17.73089659,236.64,236.53,17.73089659]
[1731823560673,0.21916462,236.61,236.49,32.7188]
[1731823560878,17.73089659,236.58,236.49,32.7188]
[1731823561578,17.73089659,236.56,236.47,17.73089659]
[1731823562506,20.0,236.57,236.47,17.73089659]
[1731823562806,17.73089659,236.52,236.43,32.7188]
[1731823563594,0.25098,236.61,236.48,17.73089659]
[1731823563798,17.73089659,236.59,236.48,17.73089659]
[1731823563979,17.73089659,236.59,236.49,23.776884]
[1731823564893,28.39545274,236.57,236.49,23.776884]
[1731823565086,28.39545274,236.57,236.48,23.776884]
[1731823565400,28.39545274,236.59,236.5,23.776884]
[1731823566591,28.39545274,236.59,236.49,28.39545274]
[1731823566592,20.0,236.56,236.48,23.776884]
[1731823566792,28.39545274,236.55,236.48,23.776884]
[1731823566974,28.39545274,236.55,236.46,23.776884]
[1731823567389,28.39545274,236.47,236.43,32.7188]
[1731823567610,28.39545274,236.45,236.38,43.3402]
[1731823567894,28.39545274,236.45,236.35,28.39545274]
[1731823568101,28.39545274,236.43,236.33,71.20375274]
[1731823568300,28.39545274,236.45,236.35,28.39545274]
[1731823568475,28.39545274,236.45,236.37,28.39545274]
[1731823569414,28.39545274,236.45,236.38,23.776884]
[1731823569695,20.0,236.5,236.42,23.776884]
[1731823569875,28.39545274,236.49,236.42,23.776884]
[1731823570580,28.39545274,236.49,236.4,23.776884]
[1731823572793,0.09367462,236.54,236.41,28.39545274]
[1731823572989,28.39545274,236.54,236.45,28.39545274]
[1731823573307,45.6403,236.62,236.49,28.39545274]
[1731823573511,28.39545274,236.59,236.49,28.39545274]
[1731823574085,45.6403,236.62,236.46,30.3847]
[1731823574086,28.39545274,236.57,236.46,58.78015274]
[1731823574285,28.39545274,236.57,236.33,6.32697279]
[1731823574286,28.39545274,236.47,236.38,58.78015274]
[1731823574490,28.39545274,236.47,236.38,30.3847]
[1731823574685,28.39545274,236.47,236.38,58.78015274]
[1731823575391,28.39545274,236.55,236.46,28.39545274]
[1731823575605,28.39545274,236.59,236.49,28.39545274]
[1731823576011,28.39545274,236.57,236.47,28.39545274]
[1731823576308,28.39545274,236.55,236.47,28.39545274]
[1731823576609,28.39545274,236.61,236.58,160.5]
[1731823576794,28.39545274,236.63,236.54,23.776884]
[1731823576989,28.39545274,236.63,236.55,28.39545274]
[1731823577211,28.39545274,236.57,236.51,23.776884]
[1731823577397,43.3204,236.68,236.45,28.39545274]
[1731823577398,28.39545274,236.55,236.45,28.39545274]
[1731823578297,28.39545274,236.53,236.44,30.3847]
[1731823579697,28.39545274,236.53,236.45,23.776884]
[1731823581199,20.0,236.52,236.41,28.39545274]
[1731823581399,28.39545274,236.43,236.35,28.39545274]
[1731823581705,28.39545274,236.41,236.33,28.39545274]
[1731823582618,28.39545274,236.43,236.33,28.39545274]
[1731823583198,28.39545274,236.43,236.34,23.776884]
[1731823583891,28.39545274,236.41,236.34,23.776884]
[1731823584797,28.39545274,236.45,236.38,23.776884]
[1731823585116,28.39545274,236.47,236.38,23.776884]
[1731823587033,19.08319094,236.55,236.41,28.39545274]
[1731823587203,28.39545274,236.51,236.44,23.776884]
[1731823587402,28.39545274,236.5,236.42,23.776884]
[1731823588797,28.39545274,236.52,236.42,23.776884]
[1731823589020,28.39545274,236.54,236.46,23.776884]
[1731823590611,28.39545274,236.57,236.48,23.776884]
[1731823591418,28.39545274,236.57,236.49,28.39545274]
[1731823591618,32.9233,236.66,236.5,23.776884]
[1731823591619,28.39545274,236.59,236.5,23.776884]
[1731823591812,28.39545274,236.57,236.5,23.776884]
[1731823592010,28.39545274,236.57,236.48,23.776884]
[1731823593210,28.39545274,236.49,236.44,32.6793]
[1731823593415,28.39545274,236.52,236.44,61.07475274]
[1731823593920,28.39545274,236.48,236.4,28.39545274]
[1731823594132,28.39545274,236.48,236.39,32.8964]
[1731823594508,28.39545274,236.5,236.4,28.39545274]
[1731823594707,28.39545274,236.46,236.39,32.8964]
[1731823596027,28.39545274,236.42,236.33,61.29185274]
[1731823597304,28.39545274,236.42,236.27,25.49]
[1731823597305,28.39545274,236.36,236.27,32.8964]
[1731823597508,28.39545274,236.33,236.27,32.8964]
[1731823597830,28.39545274,236.35,236.27,32.8964]
[1731823598632,28.39545274,236.33,236.27,32.8964]
[1731823598804,0.1,236.43,236.25,12.5893]
[1731823598805,28.39545274,236.29,236.25,12.5893]
[1731823599006,28.39545274,236.27,236.21,32.8964]
[1731823599207,28.39545274,236.23,236.21,32.8964]
[1731823599801,28.39545274,236.25,236.21,32.8964]
[1731823603326,28.39545274,236.27,236.21,32.8964]
[1731823604132,28.39545274,236.23,236.14,45.4857]
[1731823604310,28.39545274,236.24,236.14,45.4857]
[1731823604633,28.39545274,236.24,236.15,28.48912736]
[1731823605410,28.39545274,236.24,236.16,23.776884]
[1731823608033,28.39545274,236.3,236.27,160.5]
[1731823608208,28.39545274,236.36,236.26,23.776884]
[1731823609435,28.39545274,236.36,236.25,28.39545274]
[1731823609436,28.39545274,236.42,236.32,23.776884]
[1731823609934,28.39545274,236.42,236.34,23.776884]
[1731823610529,28.39545274,236.42,236.35,0.09367462]
[1731823610734,16.909006,236.57,236.41,24.12153862]
[1731823611045,28.39545274,236.54,236.45,23.776884]
[1731823611332,28.39545274,236.46,236.42,13.3319]
[1731823611539,0.1,236.56,236.36,41.72735274]
[1731823611540,28.39545274,236.44,236.36,41.72735274]
[1731823611846,28.39545274,236.42,236.36,13.3319]
[1731823612532,28.39545274,236.46,236.38,0.09367462]
[1731823613029,28.39545274,236.48,236.39,23.902374]
[1731823613618,28.39545274,236.48,236.41,0.12549]
[1731823613827,28.39545274,236.5,236.41,23.902374]
[1731823614041,28.39545274,236.5,236.43,0.12549]
[1731823614337,28.39545274,236.52,236.45,0.12549]
[1731823614714,28.39545274,236.5,236.44,0.12549]
[1731823615014,28.39545274,236.48,236.44,0.12549]
[1731823615218,28.39545274,236.48,236.43,23.776884]
[1731823615543,28.39545274,236.46,236.36,41.72735274]
[1731823615843,28.39545274,236.46,236.37,0.09367462]
[1731823616732,28.39545274,236.46,236.37,24.12153862]
[1731823617033,28.39545274,236.42,236.36,13.3319]
[1731823617239,28.39545274,236.4,236.36,13.3319]
[1731823617437,28.39545274,236.37,236.36,13.3319]
[1731823617731,28.39545274,236.37,236.3,13.3319]
[1731823617935,28.39545274,236.31,236.26,31.7624]
[1731823618137,28.39545274,236.28,236.26,31.7624]
[1731823618938,0.34465462,236.43,236.31,132.10454726]
[1731823619113,28.39545274,236.31,236.26,31.7624]
[1731823619642,28.39545274,236.31,236.19,28.39545274]
[1731823619643,28.39545274,236.29,236.19,31.7624]
[1731823620126,28.39545274,236.29,236.2,0.09367462]
[1731823620434,28.39545274,236.27,236.19,31.7624]
[1731823620925,28.39545274,236.27,236.2,23.902374]
[1731823621246,28.39545274,236.23,236.19,31.7624]
[1731823621417,28.39545274,236.23,236.17,13.3319]
[1731823622323,28.39545274,236.21,236.12,31.7624]
[1731823622836,28.39545274,236.21,236.13,0.09367462]
[1731823623228,28.39545274,236.23,236.13,28.48912736]
[1731823623828,28.39545274,236.23,236.15,0.09367462]
[1731823624023,28.39545274,236.23,236.15,0.21916462]
[1731823627022,28.39545274,236.17,236.03,28.63]
[1731823627220,28.39545274,236.13,236.03,31.63545274]
[1731823627414,28.39545274,236.13,236.03,28.39545274]
[1731823628428,28.39545274,236.13,235.96,25.39]
[1731823628429,20.0,236.12,235.96,25.39]
[1731823628635,28.39545274,236.07,235.97,28.39545274]
[1731823628837,20.0,236.12,235.88,0.1]
[1731823628838,28.39545274,236.03,235.93,28.39545274]
[1731823629543,28.39545274,236.03,235.88,45.0317]
[1731823629544,28.39545274,236.06,235.97,28.39545274]
[1731823629721,20.0,236.07,235.97,28.39545274]
[1731823630226,28.39545274,236.06,235.97,28.39545274]
[1731823630535,28.39545274,236.08,236.0,0.09367462]
[1731823630739,28.39545274,236.11,236.02,23.776884]
[1731823631332,28.39545274,236.09,236.02,23.776884]
[1731823632626,20.0,236.11,236.02,23.776884]
[1731823633443,28.39545274,236.12,236.03,28.39545274]
[1731823633622,28.39545274,236.18,236.09,28.39545274]
[1731823633826,28.39545274,236.18,236.1,23.776884]
[1731823634023,28.39545274,236.18,236.08,23.776884]
[1731823634752,28.39545274,236.18,236.1,23.776884]
[1731823635454,28.39545274,236.2,236.12,23.776884]
[1731823635951,28.39545274,236.24,236.16,0.09367462]
[1731823636120,12.0584,236.33,236.16,0.09367462]
[1731823636121,28.39545274,236.26,236.16,23.87055862]
[1731823636442,28.39545274,236.22,236.14,23.776884]
[1731823637536,28.39545274,236.22,236.12,23.87055862]
[1731823638244,28.39545274,236.2,236.12,23.87055862]
[1731823642128,28.39545274,236.18,236.1,23.776884]
[1731823642333,28.39545274,236.12,236.05,42.6659]
[1731823642746,28.39545274,236.12,236.05,30.283]
[1731823643351,28.39545274,236.1,236.01,28.39545274]
[1731823644252,28.39545274,236.08,235.99,28.39545274]
[1731823644754,28.39545274,236.06,235.95,28.39545274]
[1731823645227,28.39545274,236.02,235.94,32.019]
[1731823645428,28.39545274,236.0,235.91,28.39545274]
[1731823645941,28.39545274,236.02,235.94,0.09367462]
[1731823646142,28.39545274,236.06,235.97,28.39545274]
[1731823646751,28.39545274,236.06,235.98,23.776884]
[1731823647055,28.39545274,236.08,236.0,23.776884]
[1731823647445,28.39545274,236.06,235.99,0.09367462]
[1731823647652,28.39545274,236.06,235.98,23.776884]
[1731823647953,28.39545274,236.06,235.96,23.776884]
[1731823648154,20.0,236.05,235.97,0.09367462]
[1731823648457,28.39545274,236.06,235.97,0.09367462]
[1731823648637,28.39545274,236.06,236.0,23.776884]
[1731823649939,28.39545274,236.04,236.0,23.776884]
[1731823650340,28.39545274,236.04,235.95,28.39545274]
[1731823650556,28.39545274,236.02,235.93,28.39545274]
[1731823650953,28.39545274,236.02,235.94,0.09367462]
[1731823651853,28.39545274,236.02,235.94,23.99604862]
[1731823652157,28.39545274,236.02,235.87,32.4846599]
[1731823652158,28.39545274,236.0,235.91,28.39545274]
[1731823652360,28.39545274,235.98,235.89,28.39545274]
[1731823653461,28.39545274,235.98,235.91,0.09367462]
[1731823657573,28.39545274,235.94,235.87,60.88011264]
[1731823658159,28.39545274,235.94,235.87,32.4846599]
[1731823659069,28.39545274,235.94,235.88,23.776884]
[1731823659648,28.39545274,235.99,235.92,28.39545274]
[1731823659866,28.39545274,236.02,235.94,28.39545274]
[1731823660061,28.39545274,236.02,235.95,23.776884]
[1731823661442,28.39545274,235.98,235.91,23.776884]
[1731823668068,28.39545274,235.98,235.91,0.09367462]
[1731823668662,28.39545274,236.0,235.92,28.39545274]
[1731823668866,28.39545274,236.04,235.96,28.39545274]
[1731823670679,12.0174,236.08,235.96,28.39545274]
[1731823670851,28.39545274,236.05,235.96,28.39545274]
[1731823672553,28.39545274,235.99,235.91,60.08935274]
[1731823672749,17.83543653,235.98,235.91,31.6939]
[1731823673375,17.83543653,235.96,235.89,17.83543653]
[1731823673680,17.83543653,235.98,235.89,17.83543653]
[1731823674780,28.53717929,235.97,235.89,28.53717929]
[1731823676963,44.127864,236.05,235.89,28.53717929]
[1731823677274,28.53717929,235.97,235.87,28.75634391]
[1731823679468,28.53717929,235.99,235.92,0.09367462]
[1731823679784,28.53717929,236.02,235.93,28.53717929]
[1731823681389,28.53717929,236.0,235.92,0.09367462]
[1731823681693,23.776884,236.07,235.91,28.53717929]
[1731823681694,28.53717929,235.98,235.91,28.53717929]
[1731823681875,28.53717929,235.96,235.87,39.13617929]
[1731823682765,28.53717929,235.96,235.88,0.09367462]
[1731823682970,28.53717929,235.96,235.9,0.09367462]
[1731823683170,28.53717929,235.98,235.9,0.09367462]
[1731823684276,28.53717929,235.98,235.89,0.21916462]
[1731823684479,28.53717929,235.98,235.89,28.63085391]
[1731823685469,28.53717929,235.94,235.86,0.12549]
[1731823685702,28.53717929,235.94,235.82,39.2308]
[1731823685703,28.53717929,235.88,235.82,3.24]
[1731823685867,40.57377929,235.95,235.73,13.0068]
[1731823685868,28.53717929,235.84,235.73,46.0164]
[1731823686187,28.53717929,235.74,235.67,13.0068]
[1731823686589,28.53717929,235.76,235.67,13.0068]
[1731823687093,28.53717929,235.69,235.63,0.4656599]
[1731823687774,28.53717929,235.78,235.67,28.53717929]
[1731823687978,28.53717929,235.76,235.67,28.53717929]
[1731823688176,28.53717929,235.74,235.65,28.53717929]
[1731823688380,28.53717929,235.72,235.63,39.61263919]
[1731823688571,28.53717929,235.72,235.63,11.0754599]
[1731823688898,28.53717929,235.72,235.63,0.4656599]
[1731823689082,28.53717929,235.7,235.63,0.4656599]
[1731823689277,28.53717929,235.68,235.63,0.4656599]
[1731823690397,28.53717929,235.72,235.63,0.4656599]
[1731823691391,28.53717929,235.7,235.63,0.4656599]
[1731823692182,20.0,235.69,235.63,0.4656599]
[1731823692481,0.35098,235.77,235.64,28.53717929]
[1731823692689,20.0,235.73,235.64,28.53717929]
[1731823692882,28.53717929,235.76,235.66,28.53717929]
[1731823693085,20.0,235.75,235.66,28.53717929]
[1731823693800,20.0,235.75,235.68,28.53717929]
[1731823693989,28.53717929,235.78,235.68,28.53717929]
[1731823695407,28.53717929,235.8,235.7,28.53717929]
[1731823695605,28.53717929,235.82,235.74,28.53717929]
[1731823696684,20.0,235.82,235.74,28.53717929]
[1731823697294,20.0,235.83,235.74,28.53717929]
[1731823697680,28.53717929,235.88,235.78,28.53717929]
[1731823697882,28.53717929,235.86,235.78,28.53717929]
[1731823698093,28.53717929,235.84,235.74,28.53717929]
[1731823698295,28.53717929,235.82,235.74,28.53717929]
[1731823698794,0.2,235.88,235.7,10.6067]
[1731823698795,28.53717929,235.8,235.7,28.53717929]
[1731823699002,23.776884,235.77,235.68,28.53717929]
[1731823699500,48.63085391,235.76,235.67,12.6552]
[1731823699697,43.776884,235.73,235.63,0.4656599]
[1731823699896,43.776884,235.73,235.64,28.53717929]
[1731823700281,0.1,235.8,235.7,28.53717929]
[1731823700282,28.53717929,235.8,235.7,28.53717929]
[1731823700482,43.776884,235.79,235.7,28.53717929]
[1731823700702,43.776884,235.79,235.72,28.53717929]
[1731823701482,28.53717929,235.82,235.72,28.53717929]
[1731823701483,43.776884,235.81,235.72,28.53717929]
[1731823701880,23.776884,235.81,235.74,28.53717929]
[1731823702179,23.776884,235.83,235.74,28.53717929]
[1731823702583,28.53717929,235.84,235.74,28.53717929]
[1731823702999,28.53717929,235.88,235.8,28.53717929]
[1731823703202,12.8439,235.89,235.8,28.53717929]
[1731823704710,23.776884,235.88,235.8,28.53717929]
[1731823704890,23.776884,235.89,235.8,28.53717929]
[1731823705089,58.33111229,235.94,235.84,28.53717929]
[1731823705285,45.48721229,235.94,235.83,28.53717929]
[1731823705701,28.53717929,235.94,235.83,28.53717929]
[1731823705886,28.53717929,235.94,235.84,0.09367462]
[1731823706086,28.53717929,235.94,235.85,28.53717929]
[1731823707297,28.53717929,235.94,235.86,0.09367462]
[1731823707611,28.53717929,235.98,235.88,0.09367462]
[1731823707797,28.53717929,235.98,235.89,28.53717929]
[1731823708900,28.53717929,236.02,235.93,28.53717929]
[1731823709807,28.53717929,236.02,235.84,38.1456]
[1731823709808,28.53717929,236.04,235.95,28.53717929]
[1731823710002,28.53717929,236.06,235.97,28.53717929]
[1731823711493,23.776884,236.05,235.97,28.53717929]
[1731823711808,23.776884,236.03,235.95,28.53717929]
[1731823712119,28.53717929,236.02,235.94,10.5959]
[1731823712405,23.776884,236.01,235.88,39.13537929]
[1731823712616,23.776884,236.01,235.9,28.53717929]
[1731823713491,28.53717929,235.98,235.9,28.53717929]
[1731823714497,28.53717929,235.96,235.88,39.13537929]
[1731823714811,28.53717929,235.96,235.88,10.5982]
[1731823715503,28.53717929,235.96,235.88,39.13537929]
[1731823715804,23.776884,235.97,235.88,39.13537929]
[1731823715991,23.776884,235.97,235.9,28.53717929]
[1731823716392,28.53717929,235.98,235.9,28.53717929]
[1731823716599,28.53717929,235.98,235.88,39.13537929]
[1731823717316,28.53717929,235.98,235.89,0.09367462]
[1731823717493,31.3103,235.89,235.7,10.6065]
[1731823717691,28.53717929,235.88,235.78,31.77717929]
[1731823717888,28.53717929,235.88,235.78,28.53717929]
[1731823718100,28.53717929,235.9,235.8,28.53717929]
[1731823718309,13.0697,235.98,235.79,13.0033]
[1731823718613,31.2103,236.02,235.82,0.19367462]
[1731823719407,28.53717929,236.0,235.89,28.53717929]
[1731823720007,31.2103,236.02,235.91,28.53717929]
[1731823720216,6.68002385,236.08,235.95,28.53717929]
[1731823720217,28.53717929,236.05,235.95,28.53717929]
[1731823720512,28.53717929,236.03,235.93,28.53717929]
[1731823721015,13.0697,236.1,235.92,0.12549]
[1731823721211,28.53717929,235.99,235.92,0.12549]
[1731823721394,28.53717929,235.99,235.91,0.21916462]
[1731823721721,28.53717929,235.99,235.91,4.45786462]
[1731823722099,28.53717929,236.01,235.91,4.45786462]
[1731823722602,28.53717929,235.95,235.9,30.2924]
[1731823723516,28.53717929,235.99,235.92,0.09367462]
[1731823723699,28.53717929,235.93,235.85,0.12549]
[1731823724095,28.53717929,235.95,235.88,0.09367462]
[1731823724302,28.53717929,235.95,235.88,0.21916462]
[1731823724707,28.53717929,235.93,235.88,0.21916462]
[1731823725096,28.53717929,235.95,235.88,0.21916462]
[1731823726118,28.53717929,235.9,235.78,0.1]
[1731823726299,28.53717929,235.86,235.76,28.53717929]
[1731823726815,28.53717929,235.86,235.77,0.1]
[1731823727024,28.53717929,235.86,235.76,28.53717929]
[1731823727321,28.53717929,235.86,235.8,0.25098]
[1731823727613,28.53717929,235.82,235.72,12.3603]
[1731823727802,28.53717929,235.78,235.72,12.3603]
[1731823727999,28.53717929,235.8,235.72,12.3603]
[1731823728413,28.53717929,235.84,235.74,28.53717929]
[1731823729407,28.53717929,235.86,235.77,0.09367462]
[1731823729719,28.53717929,235.86,235.77,0.21916462]
[1731823729898,28.53717929,235.86,235.79,0.09367462]
[1731823731920,28.53717929,235.88,235.79,0.09367462]
[1731823732222,28.53717929,235.88,235.72,12.3603]
[1731823732223,28.53717929,235.83,235.73,0.25098]
[1731823732525,28.53717929,235.83,235.74,28.53717929]
[1731823733726,28.53717929,235.85,235.75,0.09367462]
[1731823733915,28.53717929,235.85,235.76,28.53717929]
[1731823734116,28.53717929,235.89,235.79,0.09367462]
[1731823734420,28.53717929,235.89,235.79,0.21916462]
[1731823735623,28.53717929,235.89,235.8,28.53717929]
[1731823736204,79.34501609,236.12,235.87,28.53717929]
[1731823736205,13.1368,235.97,235.87,28.53717929]
[1731823736404,28.53717929,235.99,235.89,28.53717929]
[1731823737310,28.53717929,235.95,235.87,28.53717929]
[1731823737715,28.53717929,235.93,235.85,31.4323]
[1731823738019,28.53717929,235.93,235.8,17.9546879]
[1731823738020,28.53717929,235.91,235.82,28.53717929]
[1731823738407,28.53717929,235.87,235.79,31.4323]
[1731823738608,28.53717929,235.85,235.74,41.11807929]
[1731823739017,28.53717929,235.85,235.76,28.53717929]
[1731823740227,28.53717929,235.85,235.74,41.11807929]
[1731823740521,28.53717929,235.79,235.7,28.53717929]
[1731823741425,28.53717929,235.75,235.65,28.53717929]
[1731823742800,28.53717929,235.75,235.66,0.25098]
[1731823744907,28.53717929,235.78,235.68,0.12549]
[1731823745107,28.53717929,235.8,235.71,28.53717929]
[1731823745323,28.53717929,235.8,235.7,0.12549]
[1731823748133,28.53717929,235.78,235.7,0.12549]
[1731823749332,28.53717929,235.8,235.7,0.12549]
[1731823750413,28.53717929,235.8,235.7,0.25098]
[1731823752328,28.53717929,235.9,235.8,0.21916462]
[1731823752524,28.53717929,235.9,235.81,28.53717929]
[1731823752727,28.53717929,235.86,235.77,28.53717929]
[1731823752930,28.53717929,235.86,235.75,31.4745]
[1731823752931,28.53717929,235.86,235.76,0.25098]
[1731823753122,28.53717929,235.84,235.77,0.09367462]
[1731823753318,28.53717929,235.84,235.75,31.4745]
[1731823753518,59.78327929,235.95,235.63,0.5656599]
[1731823753519,28.53717929,235.8,235.69,28.53717929]
[1731823753729,28.53717929,235.8,235.7,0.25098]
[1731823753920,28.53717929,235.8,235.7,0.12549]
[1731823754121,28.53717929,235.78,235.7,0.12549]
[1731823755330,28.53717929,235.78,235.7,0.25098]
[1731823755637,28.53717929,235.76,235.68,0.25098]
[1731823755841,31.8812,235.81,235.65,28.53717929]
[1731823755842,28.53717929,235.74,235.65,28.53717929]
[1731823756018,28.53717929,235.76,235.67,28.53717929]
[1731823756225,28.53717929,235.82,235.71,28.53717929]
[1731823756440,31.8812,235.87,235.69,28.53717929]
[1731823756441,28.53717929,235.78,235.69,28.53717929]
[1731823756645,28.53717929,235.78,235.67,28.53717929]
[1731823757027,28.53717929,235.78,235.68,0.25098]
[1731823758137,28.53717929,235.78,235.69,28.53717929]
[1731823758547,28.53717929,235.78,235.7,0.12549]
[1731823758925,28.53717929,235.78,235.66,28.145674]
[1731823758926,28.53717929,235.82,235.73,0.09367462]
[1731823761045,41.36617929,235.88,235.78,0.21916462]
[1731823761346,28.53717929,235.88,235.78,0.21916462]
[1731823761732,28.53717929,235.86,235.75,28.53717929]
[1731823762025,28.53717929,235.78,235.69,28.53717929]
[1731823762231,28.53717929,235.78,235.68,45.1309]
[1731823762433,28.53717929,235.78,235.68,32.7749]
[1731823763156,20.0,235.77,235.68,32.7749]
[1731823763444,28.53717929,235.72,235.63,0.4656599]
[1731823763954,28.53717929,235.7,235.63,0.4656599]
[1731823764246,28.53717929,235.72,235.64,0.09367462]
[1731823764448,20.1,235.79,235.64,0.09367462]
[1731823764449,28.53717929,235.74,235.64,0.09367462]
[1731823764650,28.53717929,235.74,235.64,0.21916462]
[1731823764853,28.53717929,235.76,235.68,0.09367462]
[1731823765032,28.53717929,235.78,235.69,28.53717929]
[1731823766045,28.53717929,235.82,235.72,0.21916462]
[1731823766433,28.53717929,235.8,235.72,0.21916462]
[1731823769447,31.8812,235.85,235.67,28.53717929]
[1731823769650,28.53717929,235.8,235.69,28.53717929]
[1731823770039,28.53717929,235.8,235.7,0.09367462]
[1731823770751,28.53717929,235.8,235.72,0.09367462]
[1731823772057,28.53717929,235.88,235.78,0.09367462]
[1731823772658,28.53717929,235.9,235.82,0.09367462]
[1731823772834,28.53717929,235.92,235.84,0.09367462]
[1731823773545,6.51769094,236.01,235.9,28.53717929]
[1731823773745,28.53717929,236.01,235.91,0.09367462]
[1731823773935,28.53717929,236.01,235.91,0.34465462]
[1731823775030,28.53717929,236.01,235.91,6.44499808]
[1731823776429,28.53717929,235.99,235.91,0.34465462]
[1731823776852,12.6642,236.06,235.91,0.34465462]
[1731823777040,20.0,236.05,235.91,0.34465462]
[1731823777229,28.53717929,235.99,235.91,0.34465462]
[1731823779162,28.53717929,235.97,235.88,28.53717929]
[1731823779341,28.53717929,235.95,235.85,28.53717929]
[1731823779657,28.53717929,235.95,235.86,0.09367462]
[1731823780236,28.53717929,235.91,235.84,30.7593]
[1731823780435,43.87055862,235.99,235.96,131.96282071]
[1731823780735,43.87055862,235.99,235.84,30.7593]
[1731823780736,20.0,235.96,235.84,30.7593]
[1731823780948,28.53717929,235.92,235.84,30.7593]
[1731823782648,28.53717929,235.92,235.82,0.09367462]
[1731823782855,28.53717929,235.92,235.83,0.12549]
[1731823784358,12.8642,236.07,235.9,0.09367462]
[1731823784532,28.53717929,235.99,235.9,0.09367462]
[1731823786445,28.53717929,236.01,235.91,28.53717929]
[1731823787848,28.53717929,236.01,235.92,0.09367462]
[1731823789369,28.53717929,236.01,235.91,28.53717929]
[1731823789538,28.53717929,236.01,235.9,0.12549]
[1731823789539,28.53717929,235.99,235.9,0.12549]
[1731823789740,28.53717929,235.99,235.89,28.66266929]
[1731823790140,28.53717929,235.97,235.87,28.53717929]
[1731823790356,28.53717929,235.93,235.83,28.53717929]
[1731823790565,28.53717929,235.91,235.81,28.53717929]
[1731823790747,28.53717929,235.93,235.83,28.53717929]
[1731823790951,0.29367462,236.06,235.87,28.53717929]
[1731823791145,28.53717929,235.99,235.9,0.09367462]
[1731823791740,28.53717929,236.04,235.94,28.53717929]
[1731823791947,28.53717929,236.04,235.95,0.34465462]
[1731823792753,28.53717929,236.04,235.95,0.09367462]
[1731823793066,28.53717929,236.06,235.97,0.09367462]
[1731823793366,28.53717929,236.06,235.97,0.34465462]
[1731823793953,28.53717929,236.12,236.04,28.53717929]
[1731823794462,28.53717929,236.12,236.02,28.53717929]
[1731823794764,36.43157579,236.12,236.02,28.53717929]
[1731823795268,20.0,236.11,236.02,28.53717929]
[1731823795467,28.53717929,236.12,236.03,0.09367462]
[1731823795656,13.2499,236.24,236.11,0.09367462]
[1731823795847,28.53717929,236.24,236.14,28.53717929]
[1731823796172,31.5228,236.27,236.16,28.53717929]
[1731823796463,28.53717929,236.26,236.16,28.53717929]
[1731823797449,20.0,236.23,236.16,28.53717929]
[1731823800560,28.53717929,236.24,236.16,28.53717929]
[1731823800772,20.0,236.23,236.16,28.53717929]
[1731823801065,20.0,236.16,236.04,61.17387929]
[1731823801276,0.1,236.23,236.04,61.17387929]